bitfinex-derivatives/quotes_BNBF0:USTF0_20250326
["timestamp","ask_amount","ask_price","bid_price","bid_amount"]
[1742985313993,1.19780327,630.43,630.18,1.18601542]
[1742985314199,0.434,630.48,630.18,1.18601542]
[1742985314498,1.19764084,630.47,630.18,1.18601542]
[1742985314699,1.19764084,630.46,630.18,1.18601542]
[1742985314894,1.19764084,630.45,630.18,1.18601542]
[1742985315097,1.19764084,630.44,630.18,1.18601542]
[1742985315297,1.19764084,630.43,630.18,1.18601542]
[1742985315492,0.434,630.48,630.28,1.18601542]
[1742985315696,1.19757309,630.47,630.28,1.18601542]
[1742985315893,1.19757309,630.46,630.28,1.18601542]
[1742985316093,1.19757309,630.45,630.28,1.18601542]
[1742985316293,1.19757309,630.44,630.28,1.18601542]
[1742985316499,0.434,630.48,630.28,1.18601542]
[1742985316798,1.19749943,630.47,630.28,1.18601542]
[1742985316998,1.19749943,630.46,630.28,1.18601542]
[1742985317199,1.19749943,630.45,630.28,1.18601542]
[1742985317400,1.19749943,630.44,630.28,1.18601542]
[1742985317701,0.434,630.48,630.28,1.18601542]
[1742985317902,1.1974385,630.47,630.28,1.18601542]
[1742985318101,1.1974385,630.46,630.28,1.18601542]
[1742985318301,1.1974385,630.45,630.28,1.18601542]
[1742985318601,1.1974385,630.44,630.28,1.18601542]
[1742985318901,0.434,630.48,630.28,1.18601542]
[1742985319100,1.19738263,630.47,630.28,1.18601542]
[1742985319300,1.19738263,630.46,630.28,1.18601542]
[1742985319527,1.19738263,630.45,630.28,1.18601542]
[1742985319796,1.19732436,630.44,630.28,1.18601542]
[1742985320002,0.576,630.47,630.28,1.18601542]
[1742985320298,1.19732522,630.46,630.28,1.18601542]
[1742985320504,1.19732522,630.45,630.28,1.18601542]
[1742985320802,0.784,630.46,630.31,1.18601542]
[1742985320803,1.19732522,630.44,630.31,1.18601542]
[1742985320999,0.784,630.46,630.31,1.18601542]
[1742985321302,1.19727359,630.45,630.31,1.18601542]
[1742985321503,1.19727359,630.44,630.31,1.18601542]
[1742985321702,0.784,630.46,630.31,1.18601542]
[1742985321900,1.19720995,630.45,630.31,1.18601542]
[1742985322098,1.19720995,630.44,630.31,1.18601542]
[1742985322297,0.784,630.46,630.31,1.18601542]
[1742985322502,1.1971737,630.45,630.31,1.18601542]
[1742985322703,1.1971737,630.44,630.31,1.18601542]
[1742985322903,0.784,630.46,630.31,1.18601542]
[1742985323104,0.784,630.46,629.92,1.00961762]
[1742985323105,1.19716411,630.45,630.28,1.18601542]
[1742985323307,1.19716411,630.44,630.28,1.18601542]
[1742985323506,1.19716411,630.43,630.28,1.18601542]
[1742985323707,1.19716411,630.42,630.28,1.18601542]
[1742985323907,0.784,630.46,630.28,1.18601542]
[1742985324109,1.19710779,630.45,630.28,1.18601542]
[1742985324309,1.19710779,630.44,630.28,1.18601542]
[1742985324509,1.19710779,630.43,630.28,1.18601542]
[1742985324807,1.19710779,630.42,630.28,1.18601542]
[1742985325005,0.784,630.46,630.28,1.18601542]
[1742985325202,1.19701821,630.45,630.28,1.18601542]
[1742985325402,1.19701821,630.44,630.28,1.18601542]
[1742985325603,1.19701821,630.43,630.17,1.18601542]
[1742985325806,1.19701821,630.42,630.17,1.18601542]
[1742985326004,1.19701821,630.41,630.17,1.18601542]
[1742985326204,0.784,630.46,630.17,1.18601542]
[1742985326407,1.19685104,630.45,630.17,1.18601542]
[1742985326611,1.19685104,630.44,630.17,1.18601542]
[1742985326809,0.784,630.46,630.17,1.18601542]
[1742985326810,1.19685104,630.43,630.17,1.18601542]
[1742985327009,1.19685104,630.42,630.17,1.18601542]
[1742985327209,1.19685104,630.41,630.17,1.18601542]
[1742985327411,0.784,630.46,630.17,1.18601542]
[1742985327711,1.19673914,630.45,630.17,1.18601542]
[1742985328011,1.19673914,630.44,630.17,1.18601542]
[1742985328205,1.19673914,630.43,630.17,1.18601542]
[1742985328406,0.784,630.46,630.17,1.18601542]
[1742985328610,1.19665962,630.45,630.17,1.18601542]
[1742985328809,0.784,630.46,630.17,1.18601542]
[1742985329006,1.19666561,630.45,630.17,1.18601542]
[1742985329211,0.784,630.46,630.17,1.18601542]
[1742985329411,1.196666,630.45,630.17,1.18601542]
[1742985329608,0.784,630.46,630.17,1.18601542]
[1742985329810,1.19657064,630.45,630.17,1.18601542]
[1742985330010,0.784,630.46,630.17,1.18601542]
[1742985330211,1.19657024,630.45,630.17,1.18601542]
[1742985330408,1.19649915,630.44,630.16,1.18601542]
[1742985330613,1.19649915,630.43,630.16,1.18601542]
[1742985330811,0.784,630.46,630.16,1.18601542]
[1742985331013,1.19651805,630.45,630.16,1.18601542]
[1742985331208,0.784,630.46,630.16,1.18601542]
[1742985331413,1.63048687,630.45,630.16,1.18601542]
[1742985331610,0.434,630.45,630.14,1.18601542]
[1742985331814,1.19643676,630.44,630.14,1.18601542]
[1742985332011,0.434,630.45,630.14,1.18601542]
[1742985332209,1.19643662,630.44,630.14,1.18601542]
[1742985332413,0.434,630.45,630.14,1.18601542]
[1742985332615,1.19632996,630.44,630.14,1.18601542]
[1742985332814,1.19632996,630.43,630.14,1.18601542]
[1742985333015,1.19632996,630.42,630.14,1.18601542]
[1742985333212,1.19632996,630.41,630.14,1.18601542]
[1742985333417,1.19632996,630.4,630.14,1.18601542]
[1742985333718,0.434,630.45,630.15,1.18601542]
[1742985333913,1.19619426,630.44,630.15,1.18601542]
[1742985334117,1.19619426,630.43,630.15,1.18601542]
[1742985334319,1.19619426,630.42,630.15,1.18601542]
[1742985334619,1.19602368,630.41,630.15,1.18601542]
[1742985334820,0.434,630.45,630.15,1.18601542]
[1742985335013,1.19602357,630.44,630.15,1.18601542]
[1742985335215,1.19602357,630.43,630.15,1.18601542]
[1742985335521,1.19602357,630.42,630.15,1.18601542]
[1742985335821,1.19602357,630.41,630.15,1.18601542]
[1742985336019,0.434,630.45,630.15,1.18601542]
[1742985336216,1.19586788,630.44,630.15,1.18601542]
[1742985336522,1.19586788,630.43,630.15,1.18601542]
[1742985336715,1.19586788,630.42,630.15,1.18601542]
[1742985336916,0.434,630.45,630.15,1.18601542]
[1742985336917,1.19586788,630.41,630.15,1.18601542]
[1742985337120,1.19586788,630.4,630.16,1.18601542]
[1742985337419,1.19586788,630.39,630.16,1.18601542]
[1742985337620,1.19586788,630.38,630.16,1.18601542]
[1742985337816,0.434,630.45,630.16,1.18601542]
[1742985338024,1.19556458,630.44,630.16,1.18601542]
[1742985338224,1.19556458,630.43,630.16,1.18601542]
[1742985338521,1.19556458,630.42,630.16,1.18601542]
[1742985338722,1.19556458,630.41,630.16,1.18601542]
[1742985338926,1.19556458,630.4,630.16,1.18601542]
[1742985339120,1.19556458,630.39,630.16,1.18601542]
[1742985339325,1.19556458,630.38,630.04,1.18601542]
[1742985339525,0.434,630.45,630.04,1.18601542]
[1742985339725,1.1953405,630.44,630.04,1.18601542]
[1742985339927,1.1953405,630.43,630.04,1.18601542]
[1742985340127,1.1953405,630.42,630.04,1.18601542]
[1742985340322,0.434,630.45,630.04,1.18601542]
[1742985340323,1.1953405,630.41,630.04,1.18601542]
[1742985340528,1.1953405,630.4,630.04,1.18601542]
[1742985340728,1.1953405,630.39,630.04,1.18601542]
[1742985340928,1.1953405,630.38,630.04,1.18601542]
[1742985341129,1.1953405,630.37,630.04,1.18601542]
[1742985341329,0.434,630.45,630.04,1.18601542]
[1742985341530,1.19516551,630.44,630.04,1.18601542]
[1742985341736,1.19516551,630.43,630.04,1.18601542]
[1742985341930,1.19516551,630.42,630.03,1.18601542]
[1742985342130,1.19516551,630.41,630.03,1.18601542]
[1742985342330,1.19516551,630.4,630.03,1.18601542]
[1742985342632,1.19516551,630.39,630.03,1.18601542]
[1742985342832,1.19516551,630.38,630.03,1.18601542]
[1742985343033,0.434,630.45,630.03,1.18601542]
[1742985343227,1.19507544,630.44,630.03,1.18601542]
[1742985343532,1.19507544,630.43,630.03,1.18601542]
[1742985343732,1.19507544,630.42,630.03,1.18601542]
[1742985343934,1.19507544,630.41,630.03,1.18601542]
[1742985344232,1.19507544,630.4,630.03,1.18601542]
[1742985344435,1.19507544,630.39,630.03,1.18601542]
[1742985344634,1.19507544,630.38,630.03,1.18601542]
[1742985344830,1.102,630.39,630.13,1.18601542]
[1742985345034,1.19493499,630.38,630.13,1.18601542]
[1742985345234,1.102,630.39,630.13,1.18601542]
[1742985345535,1.19488124,630.38,630.13,1.18601542]
[1742985345735,1.102,630.39,630.13,1.18601542]
[1742985345933,1.19488038,630.38,630.13,1.18601542]
[1742985346131,1.102,630.39,630.13,1.18601542]
[1742985346430,1.19487951,630.38,630.13,1.18601542]
[1742985346834,1.102,630.39,630.12,1.18601542]
[1742985349836,1.102,630.39,630.14,1.18601542]
[1742985350637,0.576,630.38,630.14,1.18601542]
[1742985352338,0.576,630.38,629.81,1.18601542]
[1742985354339,0.576,630.38,629.82,1.18601542]
[1742985356244,0.576,630.38,629.76,0.27610721]
[1742985356245,0.576,630.38,629.8,1.18601542]
[1742985357145,0.576,630.38,629.81,0.26407996]
[1742985358744,0.576,630.38,630.11,1.18601542]
[1742985360542,1.066,630.37,630.11,1.18601542]
[1742985361746,1.066,630.37,630.12,1.18601542]
[1742985363747,1.066,630.37,630.14,1.18601542]
[1742985364345,0.434,630.36,630.14,1.18601542]
[1742985366048,0.434,630.36,630.25,1.18601542]
[1742985368551,0.434,630.36,630.26,1.18601542]
[1742985372252,0.434,630.36,630.25,1.18601542]
[1742985374755,0.434,630.36,630.22,1.18601542]
[1742985375448,1.066,630.37,630.22,1.18601542]
[1742985377656,1.066,630.37,630.23,1.18601542]
[1742985378651,0.576,630.38,630.23,1.18601542]
[1742985379353,0.434,630.37,630.23,1.18601542]
[1742985380457,0.434,630.37,630.25,1.18601542]
[1742985382160,0.434,630.37,630.32,1.18601542]
[1742985387962,1.19788663,630.36,630.32,1.18601542]
[1742985388157,1.19788663,630.35,630.32,1.18601542]
[1742985388362,1.19788663,630.34,630.32,1.18601542]
[1742985388563,0.434,630.37,630.32,1.18601542]
[1742985388762,1.19804996,630.36,630.32,1.18601542]
[1742985388956,1.19804996,630.35,630.32,1.18601542]
[1742985389160,0.434,630.37,630.31,1.18601542]
[1742985389161,1.19804996,630.34,630.31,1.18601542]
[1742985389361,1.19804996,630.33,630.31,1.18601542]
[1742985389563,1.19804996,630.32,630.31,1.18601542]
[1742985391165,1.19804996,630.32,630.07,1.18601542]
[1742985391365,1.19804996,630.31,630.07,1.18601542]
[1742985391561,1.19804996,630.3,630.07,1.18601542]
[1742985391760,1.19804996,630.29,630.07,1.18601542]
[1742985391960,1.19804996,630.28,630.07,1.18601542]
[1742985392160,1.19804996,630.27,630.07,1.18601542]
[1742985392365,0.434,630.37,630.07,1.18601542]
[1742985392562,0.576,630.26,630.07,1.18601542]
[1742985396468,0.576,630.26,630.01,1.18601542]
[1742985399572,0.576,630.26,630.13,1.18601542]
[1742985402376,0.576,630.26,630.15,1.18601542]
[1742985403571,1.19908107,630.25,630.15,1.18601542]
[1742985403774,0.576,630.26,630.15,1.18601542]
[1742985403975,0.576,630.26,630.14,1.18601542]
[1742985404778,1.258,630.45,630.14,1.18601542]
[1742985404980,0.434,630.27,630.14,1.18601542]
[1742985405181,1.19909072,630.26,630.14,1.18601542]
[1742985405381,0.434,630.27,630.24,1.18601542]
[1742985405576,1.19910896,630.26,630.24,1.18601542]
[1742985405779,0.434,630.27,630.24,1.18601542]
[1742985406081,1.19910983,630.26,630.24,1.18601542]
[1742985406282,0.434,630.27,630.24,1.18601542]
[1742985406474,1.19913014,630.26,630.24,1.18601542]
[1742985406679,0.434,630.27,630.24,1.18601542]
[1742985406878,1.19912927,630.26,630.24,1.18601542]
[1742985407079,0.434,630.27,630.24,1.18601542]
[1742985407276,1.19912399,630.26,630.24,1.18601542]
[1742985407481,0.434,630.27,630.24,1.18601542]
[1742985407682,1.19914502,630.26,630.24,1.18601542]
[1742985407878,0.434,630.27,630.24,1.18601542]
[1742985408084,1.19914524,630.26,630.24,1.18601542]
[1742985408284,0.434,630.27,630.24,1.18601542]
[1742985408480,1.1991685,630.26,630.24,1.18601542]
[1742985408684,0.434,630.27,630.25,1.18601542]
[1742985408983,1.1991685,630.26,630.25,1.18601542]
[1742985409384,0.434,630.27,630.25,1.18601542]
[1742985411289,0.434,630.27,630.26,1.18601542]
[1742985411489,1.63314756,630.27,630.26,1.18601542]
[1742985413794,0.434,630.27,630.26,1.18601542]
[1742985415391,0.434,630.27,630.2,1.18601542]
[1742985417097,0.434,630.27,630.19,1.18601542]
[1742985418695,0.434,630.27,630.16,1.18601542]
[1742985423104,0.434,630.27,630.17,1.18601542]
[1742985425601,0.434,630.27,630.18,1.18601542]
[1742985427308,0.434,630.27,630.12,1.18256326]
[1742985429306,0.434,630.27,623.98,10.082864]
[1742985429307,0.434,630.27,630.1,1.18256326]
[1742985430819,0.576,630.26,630.1,1.18256326]
[1742985431314,0.576,630.26,630.01,1.18919417]
[1742985431315,0.576,630.26,630.11,1.18256326]
[1742985433217,0.576,630.26,630.14,1.18256326]
[1742985435618,0.576,630.26,630.1,1.18256326]
[1742985438220,0.576,630.26,630.07,1.18256326]
[1742985439921,0.576,630.26,630.22,1.18670991]
[1742985443324,0.576,630.26,630.25,1.18670991]
[1742985445827,0.576,630.26,630.11,1.18670991]
[1742985448224,0.576,630.26,629.75,0.27607435]
[1742985448225,0.576,630.26,630.15,1.18670991]
[1742985448830,1.341,630.27,630.15,1.18670991]
[1742985450731,0.434,630.27,630.15,1.18670991]
[1742985451028,0.434,630.27,630.18,1.18670991]
[1742985453232,0.434,630.27,630.19,1.18670991]
[1742985454735,0.434,630.27,630.18,1.18670991]
[1742985457238,0.434,630.27,630.13,1.18670991]
[1742985460242,0.576,630.3,630.13,1.18670991]
[1742985460441,0.576,630.3,629.8,0.27606559]
[1742985460442,0.576,630.3,629.87,1.18670991]
[1742985462845,0.576,630.3,630.07,1.18670991]
[1742985464146,0.434,630.29,630.07,1.18670991]
[1742985464546,0.434,630.29,630.04,1.18670991]
[1742985466445,1.19846717,630.28,630.04,1.18670991]
[1742985466646,0.434,630.29,630.04,1.18670991]
[1742985466847,1.19846717,630.28,630.02,1.18670991]
[1742985467048,0.434,630.29,630.02,1.18670991]
[1742985467351,1.1984638,630.28,630.02,1.18670991]
[1742985467550,0.434,630.29,630.02,1.18670991]
[1742985467743,1.19846673,630.28,630.02,1.18670991]
[1742985467947,0.434,630.29,630.02,1.18670991]
[1742985468146,1.19846049,630.28,630.02,1.18670991]
[1742985468348,0.434,630.29,630.02,1.18670991]
[1742985468547,1.19846168,630.28,630.02,1.18670991]
[1742985468751,0.434,630.29,630.02,1.18670991]
[1742985468947,1.19846244,630.28,630.02,1.18670991]
[1742985469149,0.434,630.29,630.02,1.18670991]
[1742985469356,1.19846295,630.28,630.03,1.18670991]
[1742985469650,0.434,630.29,630.03,1.18670991]
[1742985469851,1.19846208,630.28,630.03,1.18670991]
[1742985470050,0.434,630.29,630.03,1.18670991]
[1742985470249,0.576,630.27,630.03,1.18670991]
[1742985471546,0.576,630.27,630.07,1.18670991]
[1742985473753,0.576,630.27,630.11,1.18670991]
[1742985475856,0.576,630.27,630.16,1.18670991]
[1742985480259,0.576,630.27,630.21,1.18670991]
[1742985482462,0.576,630.27,630.22,1.18670991]
[1742985486459,0.576,630.27,630.21,1.18670991]
[1742985492461,0.576,630.27,630.16,1.18670991]
[1742985495467,0.576,630.27,630.17,1.18670991]
[1742985497270,0.576,630.27,630.18,1.18670991]
[1742985498271,1.253,630.29,630.18,1.18670991]
[1742985502071,1.253,630.29,630.21,1.18670991]
[1742985504573,1.253,630.29,630.23,1.18670991]
[1742985505169,0.576,630.3,630.23,1.18670991]
[1742985507177,0.576,630.3,630.26,1.18670991]
[1742985509474,0.576,630.3,630.21,1.18670991]
[1742985514083,0.576,630.3,630.2,1.18670991]
[1742985514485,0.434,630.31,630.2,1.18670991]
[1742985516986,0.434,630.31,630.19,1.18670991]
[1742985517887,1.01,630.31,630.19,1.18670991]
[1742985518288,1.01,630.31,630.28,1.18670991]
[1742985519692,1.19912651,630.3,630.28,1.18670991]
[1742985519893,1.19912651,630.29,630.28,1.18670991]
[1742985520690,1.19912651,630.29,630.19,1.18670991]
[1742985520888,1.19912651,630.28,630.19,1.18670991]
[1742985521091,1.19912651,630.27,630.19,1.18670991]
[1742985521290,1.19910153,630.26,630.19,1.18670991]
[1742985521491,1.01,630.31,630.19,1.18670991]
[1742985521688,1.19909485,630.3,630.19,1.18670991]
[1742985521991,1.19909485,630.29,630.19,1.18670991]
[1742985522191,1.19909485,630.28,630.19,1.18670991]
[1742985522389,1.19909485,630.27,630.19,1.18670991]
[1742985522594,1.19909485,630.26,630.19,1.18670991]
[1742985522794,1.01,630.31,630.19,1.18670991]
[1742985522988,1.19911175,630.3,630.19,1.18670991]
[1742985523189,1.19911175,630.29,630.19,1.18670991]
[1742985523493,1.01,630.31,630.19,1.18670991]
[1742985523693,1.19911037,630.3,630.19,1.18670991]
[1742985523893,1.01,630.31,630.19,1.18670991]
[1742985523894,1.19911037,630.29,630.19,1.18670991]
[1742985524193,1.01,630.31,630.19,1.18670991]
[1742985524391,1.19912272,630.3,630.2,1.18670991]
[1742985524587,1.19912272,630.29,630.2,1.18670991]
[1742985524792,1.01,630.31,630.2,1.18670991]
[1742985524994,1.19912259,630.3,630.2,1.18670991]
[1742985525197,1.19912259,630.29,630.2,1.18670991]
[1742985525397,1.01,630.31,630.2,1.18670991]
[1742985525596,1.19911962,630.3,630.2,1.18670991]
[1742985525797,1.19911962,630.29,630.2,1.18670991]
[1742985525989,1.01,630.31,630.2,1.18670991]
[1742985526194,1.19911965,630.3,630.2,1.18670991]
[1742985526391,1.01,630.31,630.2,1.18670991]
[1742985526598,1.19911868,630.3,630.2,1.18670991]
[1742985526797,1.01,630.31,630.2,1.18670991]
[1742985526998,1.1991183,630.3,630.2,1.18670991]
[1742985527199,1.19911917,630.29,630.2,1.18670991]
[1742985527399,0.576,630.31,630.2,1.18670991]
[1742985527600,1.19911834,630.3,630.2,1.18670991]
[1742985527799,0.576,630.31,630.2,1.18670991]
[1742985527999,1.1991183,630.3,630.2,1.18670991]
[1742985528203,0.576,630.31,630.2,1.18670991]
[1742985528397,1.19911546,630.3,630.27,1.18670991]
[1742985528602,0.576,630.31,630.27,1.18670991]
[1742985528802,1.19911612,630.3,630.27,1.18670991]
[1742985529001,1.158,630.39,630.27,1.18670991]
[1742985529301,1.19911775,630.38,630.27,1.18670991]
[1742985529502,1.19911775,630.37,630.27,1.18670991]
[1742985529703,1.158,630.39,630.27,1.18670991]
[1742985529704,1.19911775,630.36,630.27,1.18670991]
[1742985529903,1.19911775,630.35,630.27,1.18670991]
[1742985530103,1.19911775,630.34,630.27,1.18670991]
[1742985530399,1.19911775,630.33,630.27,1.18670991]
[1742985530602,1.19911775,630.32,630.27,1.18670991]
[1742985530802,1.19911775,630.31,630.27,1.18670991]
[1742985531003,1.19911775,630.3,630.27,1.18670991]
[1742985531204,1.19911775,630.29,630.28,1.18670991]
[1742985532610,1.1991017,630.29,630.28,1.18670991]
[1742985533403,1.1991017,630.29,630.12,1.18256326]
[1742985533608,1.1991017,630.28,630.12,1.18256326]
[1742985533807,1.1991017,630.27,630.12,1.18256326]
[1742985534107,1.1991017,630.26,630.12,1.18256326]
[1742985534407,1.01,630.4,630.12,1.18256326]
[1742985534603,1.19907468,630.39,630.12,1.18256326]
[1742985534910,1.19907468,630.38,630.12,1.18256326]
[1742985535209,1.19907468,630.37,630.12,1.18256326]
[1742985535507,1.19907468,630.36,630.12,1.18256326]
[1742985535709,1.19907468,630.35,630.12,1.18256326]
[1742985535909,1.19907468,630.34,630.12,1.18256326]
[1742985536104,1.19907468,630.33,630.12,1.18256326]
[1742985536306,1.19907468,630.32,630.12,1.18256326]
[1742985536509,1.19907468,630.31,630.12,1.18256326]
[1742985536705,1.19907468,630.3,630.12,1.18256326]
[1742985536909,1.19907468,630.29,630.12,1.18256326]
[1742985537106,1.19907468,630.28,630.12,1.18256326]
[1742985537310,1.19907468,630.27,630.12,1.18256326]
[1742985537515,1.19907468,630.26,630.12,1.18256326]
[1742985537707,1.042,630.32,630.15,1.18256326]
[1742985537912,1.19907119,630.31,630.15,1.18256326]
[1742985538111,1.19907119,630.3,630.15,1.18256326]
[1742985538312,1.19907119,630.29,630.15,1.18256326]
[1742985538509,1.19907119,630.28,630.15,1.18256326]
[1742985538813,1.19907119,630.27,630.15,1.18256326]
[1742985539008,1.042,630.32,630.15,1.18256326]
[1742985539215,1.1990719,630.31,630.13,1.18256326]
[1742985539509,1.1990719,630.3,630.13,1.18256326]
[1742985539715,1.1990719,630.29,630.13,1.18256326]
[1742985539912,1.1990719,630.28,630.13,1.18256326]
[1742985540110,1.042,630.32,630.13,1.18256326]
[1742985540308,1.1990722,630.31,630.13,1.18256326]
[1742985540512,1.1990722,630.3,630.13,1.18256326]
[1742985540707,1.1990722,630.29,630.13,1.18256326]
[1742985541008,1.1990722,630.28,630.13,1.18256326]
[1742985541214,1.042,630.32,630.13,1.18256326]
[1742985541509,1.19907209,630.31,630.13,1.18256326]
[1742985541712,1.19907209,630.3,630.12,1.18256326]
[1742985541911,1.19907209,630.29,630.12,1.18256326]
[1742985542110,1.19907209,630.28,630.12,1.18256326]
[1742985542310,1.042,630.32,630.12,1.18256326]
[1742985542614,1.19908999,630.31,630.12,1.18256326]
[1742985542813,1.19908999,630.3,630.12,1.18256326]
[1742985543017,1.19908999,630.29,630.12,1.18256326]
[1742985543210,1.19908999,630.28,630.12,1.18256326]
[1742985543508,1.19908999,630.27,630.12,1.18256326]
[1742985543715,1.042,630.32,630.12,1.18256326]
[1742985543909,1.19908956,630.31,630.12,1.18256326]
[1742985544113,1.19908956,630.3,630.13,1.18256326]
[1742985544314,1.19908956,630.29,630.13,1.18256326]
[1742985544519,1.19908956,630.28,630.13,1.18256326]
[1742985544811,1.19909081,630.27,630.13,1.18256326]
[1742985545016,1.042,630.32,630.13,1.18256326]
[1742985545216,1.19909087,630.31,630.13,1.18256326]
[1742985545416,1.19909087,630.3,630.13,1.18256326]
[1742985545618,1.19909087,630.29,630.13,1.18256326]
[1742985545816,1.19909087,630.28,630.13,1.18256326]
[1742985546011,1.042,630.32,630.13,1.18256326]
[1742985546012,1.19909087,630.27,630.13,1.18256326]
[1742985546216,1.042,630.32,630.13,1.18256326]
[1742985546417,1.1990951,630.31,630.13,1.18256326]
[1742985546618,1.1990951,630.3,630.13,1.18256326]
[1742985546820,1.1990951,630.29,630.11,1.18256326]
[1742985547018,1.1990951,630.28,630.11,1.18256326]
[1742985547217,1.042,630.32,630.11,1.18256326]
[1742985547519,1.19909149,630.31,630.11,1.18256326]
[1742985547718,1.19909149,630.3,630.11,1.18256326]
[1742985547918,1.19909149,630.29,630.11,1.18256326]
[1742985548218,1.19909149,630.28,630.11,1.18256326]
[1742985548412,1.19909149,630.27,630.11,1.18256326]
[1742985548613,1.042,630.32,630.11,1.18256326]
[1742985548817,1.19910753,630.31,630.11,1.18256326]
[1742985549018,1.19910753,630.3,630.11,1.18256326]
[1742985549218,1.19910753,630.29,630.14,1.18256326]
[1742985549414,1.19910753,630.28,630.14,1.18256326]
[1742985549618,1.19909744,630.27,630.14,1.18256326]
[1742985549818,1.19909744,630.26,630.14,1.18256326]
[1742985550023,1.042,630.32,630.14,1.18256326]
[1742985550315,1.19909744,630.31,630.14,1.18256326]
[1742985550519,1.19909744,630.3,630.14,1.18256326]
[1742985550723,1.19909744,630.29,630.14,1.18256326]
[1742985550919,1.19909744,630.29,630.06,1.18919417]
[1742985550920,1.19909744,630.28,630.13,1.18256326]
[1742985551119,1.19909744,630.27,630.13,1.18256326]
[1742985551420,1.19909744,630.26,630.13,1.18256326]
[1742985551620,1.042,630.32,630.13,1.18256326]
[1742985551820,1.19907684,630.31,630.13,1.18256326]
[1742985552019,1.19907684,630.3,630.13,1.18256326]
[1742985552217,1.19907063,630.29,630.13,1.18256326]
[1742985552422,1.19907063,630.28,630.13,1.18256326]
[1742985552618,1.19907063,630.27,630.13,1.18256326]
[1742985552922,1.042,630.32,630.13,1.18256326]
[1742985553223,1.19904986,630.31,630.13,1.18256326]
[1742985553418,1.19904986,630.3,630.18,1.18256326]
[1742985553633,1.19904986,630.29,630.18,1.18256326]
[1742985553821,1.19904986,630.28,630.18,1.18256326]
[1742985554125,1.19904986,630.27,630.18,1.18256326]
[1742985554325,1.042,630.32,630.18,1.18256326]
[1742985554519,1.19904758,630.31,630.18,1.18256326]
[1742985554718,1.19904758,630.3,630.18,1.18256326]
[1742985554920,1.19904758,630.29,630.18,1.18256326]
[1742985555122,1.19904758,630.29,630.19,1.1871337]
[1742985555327,1.042,630.32,630.19,1.1871337]
[1742985556222,1.19903202,630.31,630.19,1.1871337]
[1742985556429,1.19903202,630.3,630.19,1.1871337]
[1742985556726,1.19903202,630.29,630.19,1.1871337]
[1742985556924,1.19903202,630.28,630.19,1.1871337]
[1742985557125,1.19903202,630.27,630.19,1.1871337]
[1742985557420,1.19903202,630.26,630.19,1.1871337]
[1742985557621,1.042,630.32,630.19,1.1871337]
[1742985557822,1.19903845,630.31,630.18,1.1871337]
[1742985558025,1.19903845,630.3,630.18,1.1871337]
[1742985558224,1.19903845,630.29,630.18,1.1871337]
[1742985558425,1.19903845,630.28,630.18,1.1871337]
[1742985558621,1.19903845,630.27,630.18,1.1871337]
[1742985558826,1.042,630.32,630.18,1.1871337]
[1742985559027,1.19904412,630.31,630.18,1.1871337]
[1742985559227,1.19904412,630.3,630.18,1.1871337]
[1742985559423,1.19904412,630.29,630.18,1.1871337]
[1742985559627,1.19904412,630.28,630.18,1.1871337]
[1742985559827,1.19904412,630.27,630.19,1.1871337]
[1742985560021,1.19904412,630.26,630.19,1.1871337]
[1742985560227,1.042,630.32,630.19,1.1871337]
[1742985560426,1.1990538,630.31,630.19,1.1871337]
[1742985560628,1.1990538,630.3,630.19,1.1871337]
[1742985560828,1.1990538,630.29,630.19,1.1871337]
[1742985561024,1.1990538,630.28,630.19,1.1871337]
[1742985561229,1.042,630.32,630.19,1.1871337]
[1742985561426,1.77505049,630.31,630.19,1.1871337]
[1742985561624,1.19905049,630.3,630.19,1.1871337]
[1742985561824,1.19905049,630.29,630.19,1.1871337]
[1742985562027,0.576,630.31,630.13,1.1871337]
[1742985562224,1.19904753,630.3,630.13,1.1871337]
[1742985562427,1.19904753,630.29,630.13,1.1871337]
[1742985562628,0.434,630.3,630.13,1.1871337]
[1742985562922,1.19904719,630.29,630.13,1.1871337]
[1742985563125,0.434,630.3,630.13,1.1871337]
[1742985563326,1.19904766,630.29,630.13,1.1871337]
[1742985563527,0.434,630.3,630.13,1.1871337]
[1742985563823,1.19905449,630.29,630.17,1.1871337]
[1742985564025,0.434,630.3,630.17,1.1871337]
[1742985564225,1.19905418,630.29,630.17,1.1871337]
[1742985564527,0.434,630.3,630.17,1.1871337]
[1742985564727,1.19906367,630.29,630.17,1.1871337]
[1742985564927,0.434,630.3,630.17,1.1871337]
[1742985565324,1.19906562,630.29,630.17,1.1871337]